[Event "Titled Tuesday Blitz August 22 Late 2023"]
[White "Ochkoos, Jura"]
[Black "Cooper, Aaron"]
[WhiteFideId "2601214"]
[BlackFideId "2634945"]
[WhiteElo "2382"]
[BlackElo "2260"]
[Result "1-0"]
[Round "7"]
[TimeControl "180+1"]
[Date "2023.08.22"]
[WhiteClock "0:00:30"]
[BlackClock "0:00:00"]
[Board "153"]

1. e4 {[%clk 0:02:55]}  d5 {[%clk 0:02:59]} 2. exd5 {[%clk 0:02:54]}  Qxd5 {[%clk 0:03:00]} 3. Nc3 {[%clk 0:02:53]}  Qd6 {[%clk 0:03:00]} 4. d4 {[%clk 0:02:52]}  Nf6 {[%clk 0:03:01]} 5. Nb5 {[%clk 0:02:52]}  Qb6 {[%clk 0:02:46]} 6. c4 {[%clk 0:02:52]}  c6 {[%clk 0:02:39]} 7. Nc3 {[%clk 0:02:45]}  Bf5 {[%clk 0:02:37]} 8. Nf3 {[%clk 0:02:44]}  e6 {[%clk 0:02:36]} 9. Be2 {[%clk 0:02:43]}  Nbd7 {[%clk 0:02:36]} 10. O-O {[%clk 0:02:43]}  Qc7 {[%clk 0:02:33]} 11. d5 {[%clk 0:02:40]}  Bd6 {[%clk 0:02:26]} 12. h3 {[%clk 0:02:28]}  exd5 {[%clk 0:02:03]} 13. cxd5 {[%clk 0:02:28]}  O-O {[%clk 0:02:03]} 14. Nd4 {[%clk 0:02:22]}  Bg6 {[%clk 0:02:02]} 15. dxc6 {[%clk 0:02:22]}  bxc6 {[%clk 0:02:02]} 16. Be3 {[%clk 0:02:20]}  Rab8 {[%clk 0:02:00]} 17. Rc1 {[%clk 0:02:18]}  Rfc8 {[%clk 0:01:31]} 18. Ncb5 {[%clk 0:02:03]}  Bh2+ {[%clk 0:01:02]} 19. Kh1 {[%clk 0:02:01]}  Qe5 {[%clk 0:01:01]} 20. Nxc6 {[%clk 0:01:57]}  Rxc6 {[%clk 0:00:47]} 21. Rxc6 {[%clk 0:01:58]}  Bf4 {[%clk 0:00:45]} 22. Qd4 {[%clk 0:01:43]}  Bxe3 {[%clk 0:00:39]} 23. Qxe3 {[%clk 0:01:43]}  Qxb2 {[%clk 0:00:37]} 24. Rfc1 {[%clk 0:01:25]}  Nb6 {[%clk 0:00:25]} 25. Qc3 {[%clk 0:01:17]}  Qxe2 {[%clk 0:00:18]} 26. Nxa7 {[%clk 0:01:12]}  Re8 {[%clk 0:00:15]} 27. Rxb6 {[%clk 0:01:08]}  Ne4 {[%clk 0:00:15]} 28. Qf3 {[%clk 0:00:48]}  Nxf2+ {[%clk 0:00:11]} 29. Kg1 {[%clk 0:00:48]}  Qd2 {[%clk 0:00:06]} 30. Rf1 {[%clk 0:00:45]}  Ne4 {[%clk 0:00:06]} 31. Nc6 {[%clk 0:00:34]}  Qd5 {[%clk 0:00:05]} 32. Ne7+ {[%clk 0:00:31]}  Kh8 {[%clk 0:00:00]} 33. Nxd5 {[%clk 0:00:30]} 1-0


[Site "https://www.chess.com"]

[Event "Titled Tuesday Blitz August 22 Late 2023"]
[White "Quirke, Jeffrey"]
[Black "Haitin, Ilja"]
[WhiteFideId "2013029"]
[BlackFideId "4501764"]
[WhiteElo "2168"]
[BlackElo "2362"]
[Result "0-1"]
[Round "7"]
[TimeControl "180+1"]
[Date "2023.08.22"]
[WhiteClock "0:00:35"]
[BlackClock "0:00:15"]
[Board "154"]

1. e4 {[%clk 0:02:56]}  e6 {[%clk 0:02:53]} 2. d4 {[%clk 0:02:54]}  d5 {[%clk 0:02:53]} 3. Bd3 {[%clk 0:02:52]}  dxe4 {[%clk 0:02:51]} 4. Bxe4 {[%clk 0:02:50]}  Nf6 {[%clk 0:02:52]} 5. Bf3 {[%clk 0:02:51]}  Bd6 {[%clk 0:02:52]} 6. Ne2 {[%clk 0:02:50]}  O-O {[%clk 0:02:45]} 7. O-O {[%clk 0:02:47]}  e5 {[%clk 0:02:45]} 8. Nbc3 {[%clk 0:02:38]}  a6 {[%clk 0:02:36]} 9. a4 {[%clk 0:02:37]}  Re8 {[%clk 0:02:26]} 10. dxe5 {[%clk 0:02:36]}  Bxe5 {[%clk 0:02:27]} 11. Bg5 {[%clk 0:02:36]}  h6 {[%clk 0:02:23]} 12. Bh4 {[%clk 0:02:35]}  Qxd1 {[%clk 0:02:21]} 13. Rfxd1 {[%clk 0:02:34]}  Bf5 {[%clk 0:02:22]} 14. Rd2 {[%clk 0:02:01]}  Nc6 {[%clk 0:02:17]} 15. Bxc6 {[%clk 0:01:52]}  bxc6 {[%clk 0:02:16]} 16. f3 {[%clk 0:01:50]}  Rab8 {[%clk 0:02:10]} 17. b3 {[%clk 0:01:50]}  Nd5 {[%clk 0:02:09]} 18. Nxd5 {[%clk 0:01:42]}  Bxa1 {[%clk 0:02:08]} 19. Ne7+ {[%clk 0:01:40]}  Rxe7 {[%clk 0:01:47]} 20. Bxe7 {[%clk 0:01:41]}  f6 {[%clk 0:01:34]} 21. Bc5 {[%clk 0:01:40]}  Kf7 {[%clk 0:01:29]} 22. Kf2 {[%clk 0:01:18]}  g5 {[%clk 0:01:22]} 23. Bd4 {[%clk 0:01:17]}  Bxd4+ {[%clk 0:01:20]} 24. Nxd4 {[%clk 0:01:18]}  Bd7 {[%clk 0:01:20]} 25. Rd3 {[%clk 0:01:13]}  c5 {[%clk 0:00:59]} 26. Ne2 {[%clk 0:01:12]}  Be6 {[%clk 0:00:59]} 27. Rc3 {[%clk 0:01:12]}  c4 {[%clk 0:00:58]} 28. Nd4 {[%clk 0:01:01]}  Rb4 {[%clk 0:00:29]} 29. Nxe6 {[%clk 0:00:48]}  Kxe6 {[%clk 0:00:30]} 30. Rxc4 {[%clk 0:00:48]}  Rxc4 {[%clk 0:00:22]} 31. bxc4 {[%clk 0:00:49]}  Kd6 {[%clk 0:00:22]} 32. Ke3 {[%clk 0:00:50]}  Kc5 {[%clk 0:00:23]} 33. Kd3 {[%clk 0:00:50]}  Kb4 {[%clk 0:00:23]} 34. Ke4 {[%clk 0:00:40]}  Kxa4 {[%clk 0:00:19]} 35. Kd5 {[%clk 0:00:40]}  Kb4 {[%clk 0:00:18]} 36. c5 {[%clk 0:00:40]}  a5 {[%clk 0:00:16]} 37. Kc6 {[%clk 0:00:40]}  a4 {[%clk 0:00:16]} 38. c3+ {[%clk 0:00:35]}  Kc4 {[%clk 0:00:15]} 0-1


[Site "https://www.chess.com"]

[Event "Titled Tuesday Blitz August 22 Late 2023"]
[White "Penagalapati, Abhinav"]
[Black "kiwibobo"]
[WhiteFideId "30938210"]
[WhiteElo "2197"]
[BlackElo "2296"]
[Result "1-0"]
[Round "7"]
[TimeControl "180+1"]
[Date "2023.08.22"]
[WhiteClock "0:00:53"]
[BlackClock "0:01:02"]
[Board "155"]

1. b3 {[%clk 0:03:00]}  d5 {[%clk 0:03:00]} 2. Bb2 {[%clk 0:02:57]}  c6 {[%clk 0:03:00]} 3. Nf3 {[%clk 0:02:55]}  Bf5 {[%clk 0:03:00]} 4. e3 {[%clk 0:02:55]}  e6 {[%clk 0:03:01]} 5. Be2 {[%clk 0:02:55]}  h6 {[%clk 0:02:58]} 6. O-O {[%clk 0:02:55]}  Nf6 {[%clk 0:02:58]} 7. c4 {[%clk 0:02:56]}  Be7 {[%clk 0:02:58]} 8. Nc3 {[%clk 0:02:56]}  O-O {[%clk 0:02:59]} 9. h3 {[%clk 0:02:55]}  a5 {[%clk 0:02:57]} 10. d4 {[%clk 0:02:53]}  Ne4 {[%clk 0:02:48]} 11. Nxe4 {[%clk 0:02:52]}  Bxe4 {[%clk 0:02:48]} 12. Bd3 {[%clk 0:02:52]}  Bxd3 {[%clk 0:02:47]} 13. Qxd3 {[%clk 0:02:51]}  a4 {[%clk 0:02:48]} 14. e4 {[%clk 0:02:51]}  dxe4 {[%clk 0:02:43]} 15. Qxe4 {[%clk 0:02:51]}  Nd7 {[%clk 0:02:44]} 16. Bc3 {[%clk 0:02:48]}  axb3 {[%clk 0:02:37]} 17. axb3 {[%clk 0:02:47]}  Qb6 {[%clk 0:02:38]} 18. Qc2 {[%clk 0:02:46]}  Bb4 {[%clk 0:02:32]} 19. Bb2 {[%clk 0:02:46]}  Nf6 {[%clk 0:02:25]} 20. d5 {[%clk 0:02:37]}  cxd5 {[%clk 0:02:14]} 21. Bxf6 {[%clk 0:02:36]}  gxf6 {[%clk 0:02:15]} 22. cxd5 {[%clk 0:02:27]}  exd5 {[%clk 0:02:16]} 23. Qf5 {[%clk 0:02:25]}  Qe6 {[%clk 0:02:13]} 24. Qh5 {[%clk 0:02:22]}  Kh7 {[%clk 0:02:06]} 25. Rxa8 {[%clk 0:02:10]}  Rxa8 {[%clk 0:02:06]} 26. Nd4 {[%clk 0:02:11]}  Qe5 {[%clk 0:01:56]} 27. Qxf7+ {[%clk 0:02:10]}  Kh8 {[%clk 0:01:55]} 28. Nf3 {[%clk 0:02:07]}  Qe7 {[%clk 0:01:53]} 29. Qxd5 {[%clk 0:02:06]}  Rg8 {[%clk 0:01:52]} 30. Rd1 {[%clk 0:01:58]}  Qe2 {[%clk 0:01:50]} 31. Rd4 {[%clk 0:01:45]}  Bc5 {[%clk 0:01:39]} 32. Qe4 {[%clk 0:01:25]}  Qb2 {[%clk 0:01:27]} 33. Rd2 {[%clk 0:01:09]}  Qxb3 {[%clk 0:01:19]} 34. Nh4 {[%clk 0:01:04]}  Qc3 {[%clk 0:01:11]} 35. Rd7 {[%clk 0:00:55]}  Qg3 {[%clk 0:01:02]} 36. Qh7# {[%clk 0:00:53]} 1-0


[Site "https://www.chess.com"]

[Event "Titled Tuesday Blitz August 22 Late 2023"]
[White "Hoffmann, Asa"]
[Black "Gutierrez Espinosa, Karen"]
[WhiteFideId "2001470"]
[BlackFideId "3513238"]
[WhiteElo "2284"]
[BlackElo "2112"]
[Result "1-0"]
[Round "7"]
[TimeControl "180+1"]
[Date "2023.08.22"]
[WhiteClock "0:01:41"]
[BlackClock "0:01:14"]
[Board "156"]

1. d4 {[%clk 0:02:50]}  d5 {[%clk 0:02:56]} 2. Bg5 {[%clk 0:02:46]}  f6 {[%clk 0:02:54]} 3. Bf4 {[%clk 0:02:43]}  Nc6 {[%clk 0:02:49]} 4. Nf3 {[%clk 0:02:43]}  Bg4 {[%clk 0:02:46]} 5. Nbd2 {[%clk 0:02:43]}  g5 {[%clk 0:02:45]} 6. Bg3 {[%clk 0:02:42]}  h5 {[%clk 0:02:44]} 7. h4 {[%clk 0:02:39]}  Bxf3 {[%clk 0:02:42]} 8. Nxf3 {[%clk 0:02:35]}  g4 {[%clk 0:02:43]} 9. Ng1 {[%clk 0:02:33]}  e5 {[%clk 0:02:42]} 10. e3 {[%clk 0:02:33]}  a6 {[%clk 0:02:34]} 11. a3 {[%clk 0:02:28]}  Bd6 {[%clk 0:02:06]} 12. c4 {[%clk 0:02:27]}  dxc4 {[%clk 0:02:05]} 13. Bxc4 {[%clk 0:02:26]}  exd4 {[%clk 0:02:04]} 14. Qb3 {[%clk 0:02:20]}  Bxg3 {[%clk 0:01:57]} 15. Bxg8 {[%clk 0:02:19]}  Bxf2+ {[%clk 0:01:50]} 16. Kxf2 {[%clk 0:02:18]}  dxe3+ {[%clk 0:01:51]} 17. Kf1 {[%clk 0:02:10]}  Qe7 {[%clk 0:01:29]} 18. Qxb7 {[%clk 0:02:00]}  Nd8 {[%clk 0:01:22]} 19. Qxa8 {[%clk 0:01:50]}  Rxg8 {[%clk 0:01:23]} 20. Rd1 {[%clk 0:01:46]}  Kf7 {[%clk 0:01:22]} 21. Qd5+ {[%clk 0:01:42]}  Kg6 {[%clk 0:01:21]} 22. Ne2 {[%clk 0:01:42]}  Ne6 {[%clk 0:01:18]} 23. Qxe6 {[%clk 0:01:41]}  Qxe6 {[%clk 0:01:18]} 24. Nf4+ {[%clk 0:01:41]}  Kf7 {[%clk 0:01:18]} 25. Nxe6 {[%clk 0:01:41]}  Kxe6 {[%clk 0:01:19]} 26. Ke2 {[%clk 0:01:41]}  f5 {[%clk 0:01:17]} 27. Kxe3 {[%clk 0:01:41]}  Ke5 {[%clk 0:01:16]} 28. g3 {[%clk 0:01:41]}  f4+ {[%clk 0:01:14]} 29. gxf4+ {[%clk 0:01:41]} 1-0


[Site "https://www.chess.com"]

[Event "Titled Tuesday Blitz August 22 Late 2023"]
[White "dorpato"]
[Black "Cardozo Munar, Carlos Eduardo"]
[BlackFideId "4409477"]
[WhiteElo "2025"]
[BlackElo "2274"]
[Result "0-1"]
[Round "7"]
[TimeControl "180+1"]
[Date "2023.08.22"]
[WhiteClock "0:00:05"]
[BlackClock "0:01:10"]
[Board "158"]

1. e4 {[%clk 0:03:00]}  e6 {[%clk 0:02:58]} 2. d4 {[%clk 0:03:00]}  d5 {[%clk 0:02:58]} 3. e5 {[%clk 0:03:01]}  c5 {[%clk 0:02:57]} 4. c3 {[%clk 0:03:00]}  Nc6 {[%clk 0:02:57]} 5. Nf3 {[%clk 0:02:59]}  Qb6 {[%clk 0:02:58]} 6. a3 {[%clk 0:02:59]}  Nh6 {[%clk 0:02:57]} 7. Bd3 {[%clk 0:02:40]}  cxd4 {[%clk 0:02:37]} 8. cxd4 {[%clk 0:02:40]}  Bd7 {[%clk 0:02:38]} 9. Bc2 {[%clk 0:02:38]}  Ng4 {[%clk 0:02:35]} 10. O-O {[%clk 0:02:31]}  h5 {[%clk 0:02:28]} 11. b4 {[%clk 0:02:11]}  a6 {[%clk 0:02:28]} 12. Bb2 {[%clk 0:01:54]}  Be7 {[%clk 0:02:23]} 13. Nc3 {[%clk 0:01:46]}  Rh6 {[%clk 0:01:59]} 14. h3 {[%clk 0:01:39]}  O-O-O {[%clk 0:01:55]} 15. hxg4 {[%clk 0:01:30]}  hxg4 {[%clk 0:01:54]} 16. Na4 {[%clk 0:01:16]}  Qa7 {[%clk 0:01:36]} 17. Nh2 {[%clk 0:00:48]}  Rdh8 {[%clk 0:01:29]} 18. Qxg4 {[%clk 0:00:44]}  Rxh2 {[%clk 0:01:28]} 19. f3 {[%clk 0:00:35]}  R8h4 {[%clk 0:01:23]} 20. Qxg7 {[%clk 0:00:30]}  Nxd4 {[%clk 0:01:14]} 21. Qg8+ {[%clk 0:00:14]}  Kc7 {[%clk 0:01:11]} 22. Nc5 {[%clk 0:00:11]}  Bxc5 {[%clk 0:01:11]} 23. bxc5 {[%clk 0:00:10]}  Qxc5 {[%clk 0:01:11]} 24. Ba4 {[%clk 0:00:05]}  Ne2# {[%clk 0:01:10]} 0-1


[Site "https://www.chess.com"]

[Event "Titled Tuesday Blitz August 22 Late 2023"]
[White "Mr_November18"]
[Black "Arias Igual, Alejandro"]
[BlackFideId "2254905"]
[WhiteElo "1966"]
[BlackElo "2271"]
[Result "0-1"]
[Round "7"]
[TimeControl "180+1"]
[Date "2023.08.22"]
[WhiteClock "0:00:00"]
[BlackClock "0:00:06"]
[Board "159"]

1. e4 {[%clk 0:02:56]}  c5 {[%clk 0:02:59]} 2. d4 {[%clk 0:02:55]}  cxd4 {[%clk 0:02:59]} 3. c3 {[%clk 0:02:55]}  d3 {[%clk 0:02:54]} 4. Bxd3 {[%clk 0:02:54]}  Nc6 {[%clk 0:02:54]} 5. Nf3 {[%clk 0:02:54]}  d6 {[%clk 0:02:55]} 6. c4 {[%clk 0:02:54]}  Bg4 {[%clk 0:02:54]} 7. Nc3 {[%clk 0:02:48]}  Nf6 {[%clk 0:02:52]} 8. h3 {[%clk 0:02:48]}  Bxf3 {[%clk 0:02:52]} 9. Qxf3 {[%clk 0:02:48]}  g6 {[%clk 0:02:53]} 10. Qe2 {[%clk 0:02:45]}  Bg7 {[%clk 0:02:53]} 11. Be3 {[%clk 0:02:42]}  O-O {[%clk 0:02:52]} 12. Rc1 {[%clk 0:02:41]}  Nd7 {[%clk 0:02:49]} 13. O-O {[%clk 0:02:39]}  e6 {[%clk 0:02:40]} 14. b3 {[%clk 0:02:32]}  Qe7 {[%clk 0:02:40]} 15. Qd2 {[%clk 0:02:31]}  Rfd8 {[%clk 0:02:38]} 16. Rfd1 {[%clk 0:02:30]}  Nc5 {[%clk 0:02:17]} 17. Bb1 {[%clk 0:02:25]}  Bf6 {[%clk 0:01:51]} 18. Nb5 {[%clk 0:02:08]}  b6 {[%clk 0:01:27]} 19. Nd4 {[%clk 0:01:54]}  Nxd4 {[%clk 0:01:24]} 20. Bxd4 {[%clk 0:01:54]}  Bxd4 {[%clk 0:01:24]} 21. Qxd4 {[%clk 0:01:53]}  e5 {[%clk 0:01:25]} 22. Qd5 {[%clk 0:01:52]}  Ne6 {[%clk 0:01:25]} 23. Qd2 {[%clk 0:01:35]}  Kg7 {[%clk 0:01:24]} 24. Qe3 {[%clk 0:01:34]}  h5 {[%clk 0:01:22]} 25. Rd5 {[%clk 0:01:33]}  Rac8 {[%clk 0:01:20]} 26. Rcd1 {[%clk 0:01:32]}  Rc5 {[%clk 0:01:09]} 27. g3 {[%clk 0:01:28]}  Rxd5 {[%clk 0:01:07]} 28. exd5 {[%clk 0:01:26]}  Nf8 {[%clk 0:00:58]} 29. f4 {[%clk 0:01:20]}  f6 {[%clk 0:00:54]} 30. fxe5 {[%clk 0:01:15]}  fxe5 {[%clk 0:00:53]} 31. Rf1 {[%clk 0:01:14]}  a5 {[%clk 0:00:50]} 32. Qe4 {[%clk 0:01:13]}  Qg5 {[%clk 0:00:46]} 33. Kg2 {[%clk 0:00:56]}  h4 {[%clk 0:00:36]} 34. Qf3 {[%clk 0:00:42]}  Qxg3+ {[%clk 0:00:31]} 35. Qxg3 {[%clk 0:00:41]}  hxg3 {[%clk 0:00:32]} 36. Kxg3 {[%clk 0:00:42]}  Nd7 {[%clk 0:00:31]} 37. Kg4 {[%clk 0:00:32]}  Rf8 {[%clk 0:00:29]} 38. Rxf8 {[%clk 0:00:31]}  Nxf8 {[%clk 0:00:29]} 39. Kg5 {[%clk 0:00:31]}  Nh7+ {[%clk 0:00:28]} 40. Kg4 {[%clk 0:00:29]}  Kf6 {[%clk 0:00:28]} 41. h4 {[%clk 0:00:29]}  Nf8 {[%clk 0:00:25]} 42. Bc2 {[%clk 0:00:28]}  Nd7 {[%clk 0:00:23]} 43. Kf3 {[%clk 0:00:21]}  Nc5 {[%clk 0:00:23]} 44. Bb1 {[%clk 0:00:20]}  Kg7 {[%clk 0:00:16]} 45. Kg4 {[%clk 0:00:18]}  Kh6 {[%clk 0:00:17]} 46. Bc2 {[%clk 0:00:16]}  Nd7 {[%clk 0:00:17]} 47. a3 {[%clk 0:00:12]}  Nf6+ {[%clk 0:00:16]} 48. Kg3 {[%clk 0:00:09]}  Kh5 {[%clk 0:00:17]} 49. b4 {[%clk 0:00:08]}  axb4 {[%clk 0:00:18]} 50. axb4 {[%clk 0:00:07]}  Nd7 {[%clk 0:00:19]} 51. Bd1+ {[%clk 0:00:06]}  Kh6 {[%clk 0:00:18]} 52. Ba4 {[%clk 0:00:06]}  Nf6 {[%clk 0:00:17]} 53. Bc2 {[%clk 0:00:04]}  Nh5+ {[%clk 0:00:16]} 54. Kg4 {[%clk 0:00:03]}  Nf6+ {[%clk 0:00:15]} 55. Kf3 {[%clk 0:00:02]}  Kh5 {[%clk 0:00:15]} 56. Kg3 {[%clk 0:00:02]}  g5 {[%clk 0:00:08]} 57. Bd1+ {[%clk 0:00:01]}  Kg6 {[%clk 0:00:08]} 58. hxg5 {[%clk 0:00:02]}  Kxg5 {[%clk 0:00:08]} 59. Bc2 {[%clk 0:00:02]}  Nd7 {[%clk 0:00:07]} 60. Kf3 {[%clk 0:00:02]}  Kf6 {[%clk 0:00:08]} 61. Ke4 {[%clk 0:00:02]}  Kg5 {[%clk 0:00:08]} 62. Bd3 {[%clk 0:00:02]}  Nf6+ {[%clk 0:00:09]} 63. Ke3 {[%clk 0:00:02]}  Kg4 {[%clk 0:00:09]} 64. Bc2 {[%clk 0:00:01]}  Kg3 {[%clk 0:00:08]} 65. Kd3 {[%clk 0:00:02]}  Kf3 {[%clk 0:00:08]} 66. Kc3 {[%clk 0:00:02]}  Ke3 {[%clk 0:00:08]} 67. Bf5 {[%clk 0:00:02]}  Kf4 {[%clk 0:00:06]} 68. Bc2 {[%clk 0:00:02]}  Ke3 {[%clk 0:00:06]} 69. Bg6 {[%clk 0:00:03]}  e4 {[%clk 0:00:06]} 70. Bf7 {[%clk 0:00:02]}  Kf3 {[%clk 0:00:05]} 71. Kd4 {[%clk 0:00:02]}  e3 {[%clk 0:00:05]} 72. Kd3 {[%clk 0:00:02]}  e2 {[%clk 0:00:04]} 73. Kd2 {[%clk 0:00:02]}  Kf2 {[%clk 0:00:04]} 74. c5 {[%clk 0:00:01]}  e1=Q+ {[%clk 0:00:05]} 75. Kd3 {[%clk 0:00:00]}  Qxb4 {[%clk 0:00:06]} 0-1


[Site "https://www.chess.com"]

[Event "Titled Tuesday Blitz August 22 Late 2023"]
[White "Oliveira, Tiago Batista"]
[Black "disciplinedbrat"]
[WhiteFideId "2108291"]
[WhiteElo "2134"]
[BlackElo "2321"]
[Result "0-1"]
[Round "7"]
[TimeControl "180+1"]
[Date "2023.08.22"]
[WhiteClock "0:00:00"]
[BlackClock "0:01:22"]
[Board "162"]

1. d4 {[%clk 0:03:00]}  Nf6 {[%clk 0:02:58]} 2. c4 {[%clk 0:02:58]}  e6 {[%clk 0:02:59]} 3. g3 {[%clk 0:02:42]}  d5 {[%clk 0:02:58]} 4. Bg2 {[%clk 0:02:42]}  Be7 {[%clk 0:02:59]} 5. Nf3 {[%clk 0:02:42]}  O-O {[%clk 0:02:59]} 6. O-O {[%clk 0:02:42]}  dxc4 {[%clk 0:03:00]} 7. Qc2 {[%clk 0:02:42]}  b5 {[%clk 0:03:00]} 8. a4 {[%clk 0:02:12]}  b4 {[%clk 0:02:59]} 9. Nbd2 {[%clk 0:02:02]}  c3 {[%clk 0:02:44]} 10. bxc3 {[%clk 0:01:59]}  bxc3 {[%clk 0:02:45]} 11. Qxc3 {[%clk 0:01:51]}  Nd5 {[%clk 0:02:45]} 12. Qc2 {[%clk 0:01:39]}  Bb7 {[%clk 0:02:45]} 13. Ba3 {[%clk 0:01:22]}  Nc6 {[%clk 0:02:40]} 14. Bxe7 {[%clk 0:01:11]}  Qxe7 {[%clk 0:02:41]} 15. e4 {[%clk 0:00:58]}  Ndb4 {[%clk 0:02:37]} 16. Qc3 {[%clk 0:00:36]}  Rfd8 {[%clk 0:02:30]} 17. Rfb1 {[%clk 0:00:34]}  a5 {[%clk 0:02:30]} 18. Nb3 {[%clk 0:00:29]}  Qf6 {[%clk 0:01:58]} 19. e5 {[%clk 0:00:25]}  Qg6 {[%clk 0:01:54]} 20. Nc5 {[%clk 0:00:23]}  Nd5 {[%clk 0:01:49]} 21. Qc1 {[%clk 0:00:15]}  Bc8 {[%clk 0:01:49]} 22. Nh4 {[%clk 0:00:13]}  Qg4 {[%clk 0:01:46]} 23. Ne4 {[%clk 0:00:07]}  Nxd4 {[%clk 0:01:43]} 24. f3 {[%clk 0:00:05]}  Ne2+ {[%clk 0:01:36]} 25. Kh1 {[%clk 0:00:04]}  Qxh4 {[%clk 0:01:30]} 26. gxh4 {[%clk 0:00:03]}  Nxc1 {[%clk 0:01:30]} 27. Rxc1 {[%clk 0:00:04]}  Ba6 {[%clk 0:01:29]} 28. Ng5 {[%clk 0:00:02]}  h6 {[%clk 0:01:29]} 29. Ne4 {[%clk 0:00:02]}  Ne3 {[%clk 0:01:28]} 30. Nc5 {[%clk 0:00:02]}  Bc4 {[%clk 0:01:25]} 31. f4 {[%clk 0:00:00]}  Rab8 {[%clk 0:01:22]} 0-1


[Site "https://www.chess.com"]

[Event "Titled Tuesday Blitz August 22 Late 2023"]
[White "Nakamura, Hikaru"]
[Black "Sarana, Alexey"]
[WhiteFideId "2016192"]
[BlackFideId "24133795"]
[WhiteElo "3237"]
[BlackElo "3092"]
[Result "1-0"]
[Round "8"]
[TimeControl "180+1"]
[Date "2023.08.22"]
[WhiteClock "0:01:50"]
[BlackClock "0:01:35"]
[Board "1"]

1. c4 {[%clk 0:03:00]}  e6 {[%clk 0:03:00]} 2. d4 {[%clk 0:02:57]}  d5 {[%clk 0:03:01]} 3. Nc3 {[%clk 0:02:56]}  Nf6 {[%clk 0:03:01]} 4. cxd5 {[%clk 0:02:56]}  exd5 {[%clk 0:03:02]} 5. Bf4 {[%clk 0:02:56]}  Bd6 {[%clk 0:03:01]} 6. Bxd6 {[%clk 0:02:51]}  Qxd6 {[%clk 0:03:02]} 7. e3 {[%clk 0:02:52]}  Bf5 {[%clk 0:03:03]} 8. Qb3 {[%clk 0:02:52]}  Nbd7 {[%clk 0:03:01]} 9. a3 {[%clk 0:02:42]}  O-O {[%clk 0:03:01]} 10. Rc1 {[%clk 0:02:42]}  c5 {[%clk 0:03:00]} 11. dxc5 {[%clk 0:02:31]}  Nxc5 {[%clk 0:03:00]} 12. Qb4 {[%clk 0:02:32]}  Rac8 {[%clk 0:02:49]} 13. Rd1 {[%clk 0:02:24]}  Rfe8 {[%clk 0:02:44]} 14. Nf3 {[%clk 0:02:22]}  b6 {[%clk 0:02:22]} 15. Bb5 {[%clk 0:02:03]}  Re7 {[%clk 0:02:03]} 16. O-O {[%clk 0:02:01]}  a6 {[%clk 0:01:57]} 17. Bxa6 {[%clk 0:01:57]}  Nfe4 {[%clk 0:01:35]} 18. Bxc8 {[%clk 0:01:50]} 1-0


[Site "https://www.chess.com"]

[Event "Titled Tuesday Blitz August 22 Late 2023"]
[White "Duda, Jan-Krzysztof"]
[Black "Vasquez Schroeder, Rodrigo"]
[WhiteFideId "1170546"]
[BlackFideId "3400042"]
[WhiteElo "3087"]
[BlackElo "2977"]
[Result "1-0"]
[Round "8"]
[TimeControl "180+1"]
[Date "2023.08.22"]
[WhiteClock "0:00:52"]
[BlackClock "0:00:28"]
[Board "4"]

1. e4 {[%clk 0:03:00]}  c5 {[%clk 0:03:00]} 2. Nf3 {[%clk 0:03:00]}  d6 {[%clk 0:03:00]} 3. Bc4 {[%clk 0:02:59]}  Nc6 {[%clk 0:02:59]} 4. c3 {[%clk 0:02:59]}  Nf6 {[%clk 0:02:59]} 5. d3 {[%clk 0:02:56]}  g6 {[%clk 0:02:46]} 6. O-O {[%clk 0:02:55]}  Bg7 {[%clk 0:02:46]} 7. h3 {[%clk 0:02:55]}  O-O {[%clk 0:02:45]} 8. Re1 {[%clk 0:02:55]}  Na5 {[%clk 0:02:41]} 9. Bb5 {[%clk 0:02:54]}  a6 {[%clk 0:02:42]} 10. Ba4 {[%clk 0:02:54]}  b5 {[%clk 0:02:42]} 11. Bc2 {[%clk 0:02:55]}  e5 {[%clk 0:02:43]} 12. Bg5 {[%clk 0:02:30]}  h6 {[%clk 0:02:42]} 13. Bxf6 {[%clk 0:02:29]}  Qxf6 {[%clk 0:02:35]} 14. Nbd2 {[%clk 0:02:30]}  Bb7 {[%clk 0:02:28]} 15. a3 {[%clk 0:02:22]}  c4 {[%clk 0:02:19]} 16. dxc4 {[%clk 0:02:12]}  bxc4 {[%clk 0:02:17]} 17. Qe2 {[%clk 0:02:12]}  Qe6 {[%clk 0:02:15]} 18. Nf1 {[%clk 0:01:56]}  Bc6 {[%clk 0:02:09]} 19. Ne3 {[%clk 0:01:49]}  Rab8 {[%clk 0:02:10]} 20. Rab1 {[%clk 0:01:49]}  Rb6 {[%clk 0:02:01]} 21. Nd2 {[%clk 0:01:49]}  Rfb8 {[%clk 0:01:53]} 22. Ndxc4 {[%clk 0:01:45]}  Nxc4 {[%clk 0:01:43]} 23. Nxc4 {[%clk 0:01:46]}  Bb5 {[%clk 0:01:40]} 24. Bd3 {[%clk 0:01:46]}  Rc6 {[%clk 0:01:36]} 25. b3 {[%clk 0:01:27]}  Rc7 {[%clk 0:01:25]} 26. a4 {[%clk 0:01:27]}  Bc6 {[%clk 0:01:24]} 27. Ne3 {[%clk 0:01:24]}  a5 {[%clk 0:01:15]} 28. Bc4 {[%clk 0:01:23]}  Qe7 {[%clk 0:01:15]} 29. Nd5 {[%clk 0:01:15]}  Bxd5 {[%clk 0:01:14]} 30. Bxd5 {[%clk 0:01:16]}  Rbc8 {[%clk 0:01:13]} 31. b4 {[%clk 0:01:13]}  Rxc3 {[%clk 0:01:01]} 32. bxa5 {[%clk 0:01:12]}  Rc2 {[%clk 0:01:01]} 33. Qf3 {[%clk 0:01:07]}  R8c7 {[%clk 0:01:02]} 34. a6 {[%clk 0:01:06]}  R7c3 {[%clk 0:00:46]} 35. Qxf7+ {[%clk 0:00:57]}  Qxf7 {[%clk 0:00:28]} 36. a7 {[%clk 0:00:52]} 1-0


[Site "https://www.chess.com"]